[Event "Late-Titled-Tuesday-Blitz-January-30-2024"]
[Site "Chess.com"]
[Date "2024.01.30"]
[Round "9"]
[White "pavet"]
[Black "Mazetovic"]
[Result "1-0"]
[WhiteElo "2781"]
[BlackElo "2631"]
[TimeControl "180+1"]
[EndTime "15:45:32 PST"]
[Termination "pavet won by resignation"]

1. e4 {[%clk 0:03:00.9]} 1... c5 {[%clk 0:02:59.3]} 2. Nf3 {[%clk 0:02:59.9]}
2... Nc6 {[%clk 0:02:59.7]} 3. d4 {[%clk 0:02:59.9]} 3... cxd4 {[%clk
0:03:00.6]} 4. Nxd4 {[%clk 0:03:00.2]} 4... g6 {[%clk 0:03:01.3]} 5. c4 {[%clk
0:03:00.3]} 5... Bg7 {[%clk 0:03:01.3]} 6. Be3 {[%clk 0:03:00.3]} 6... Nf6
{[%clk 0:03:01.5]} 7. Nc3 {[%clk 0:03:00.6]} 7... O-O {[%clk 0:03:01]} 8. Be2
{[%clk 0:03:01]} 8... d6 {[%clk 0:03:01.1]} 9. O-O {[%clk 0:03:01.4]} 9... Bd7
{[%clk 0:03:01.6]} 10. h3 {[%clk 0:03:00.8]} 10... Nxd4 {[%clk 0:02:59.3]} 11.
Bxd4 {[%clk 0:03:01]} 11... Bc6 {[%clk 0:02:58.9]} 12. Qc2 {[%clk 0:03:01.2]}
12... a5 {[%clk 0:02:55.7]} 13. Rad1 {[%clk 0:03:00.8]} 13... Qc7 {[%clk
0:02:55]} 14. a4 {[%clk 0:02:42.6]} 14... Nd7 {[%clk 0:02:47]} 15. Bxg7 {[%clk
0:02:40.3]} 15... Kxg7 {[%clk 0:02:46.3]} 16. Nd5 {[%clk 0:02:40.4]} 16... Qd8
{[%clk 0:02:29]} 17. Rfe1 {[%clk 0:02:39]} 17... Nc5 {[%clk 0:02:24.7]} 18. Nc3
{[%clk 0:02:26.1]} 18... f6 {[%clk 0:02:18.8]} 19. Bf1 {[%clk 0:02:24]} 19...
Qb6 {[%clk 0:02:17.3]} 20. Nb5 {[%clk 0:02:10.1]} 20... Rac8 {[%clk 0:02:08.4]}
21. Re3 {[%clk 0:02:06]} 21... Nd7 {[%clk 0:01:49.6]} 22. Nc3 {[%clk 0:01:59.6]}
22... Nc5 {[%clk 0:01:40.9]} 23. Nd5 {[%clk 0:01:45.8]} 23... Qd8 {[%clk
0:01:06.3]} 24. b3 {[%clk 0:01:44.4]} 24... e5 {[%clk 0:01:04.9]} 25. Nc3 {[%clk
0:01:28.9]} 25... Qb6 {[%clk 0:01:03.7]} 26. Nd5 {[%clk 0:01:07.7]} 26... Bxd5
{[%clk 0:01:02.3]} 27. Rxd5 {[%clk 0:01:04.6]} 27... h5 {[%clk 0:00:54.4]} 28.
h4 {[%clk 0:01:04.4]} 28... Ne6 {[%clk 0:00:41.4]} 29. Qd2 {[%clk 0:01:00.6]}
29... Nc5 {[%clk 0:00:30.8]} 30. Rxd6 {[%clk 0:00:41.9]} 30... Qc7 {[%clk
0:00:20.6]} 31. Rd5 {[%clk 0:00:38.5]} 31... Rfd8 {[%clk 0:00:18.4]} 32. g3
{[%clk 0:00:34.4]} 32... Rxd5 {[%clk 0:00:17.5]} 33. exd5 {[%clk 0:00:34.5]}
33... b6 {[%clk 0:00:14.9]} 34. d6 {[%clk 0:00:23.4]} 34... Qd7 {[%clk
0:00:14.5]} 35. b4 {[%clk 0:00:12.8]} 35... axb4 {[%clk 0:00:14.2]} 36. Qxb4
{[%clk 0:00:13.7]} 36... Qxd6 {[%clk 0:00:14.7]} 37. a5 {[%clk 0:00:14.1]} 37...
bxa5 {[%clk 0:00:12.8]} 38. Qxa5 {[%clk 0:00:15]} 38... Rc7 {[%clk 0:00:11.6]}
39. Qa8 {[%clk 0:00:14.5]} 39... Ne6 {[%clk 0:00:10.9]} 40. Rd3 {[%clk
0:00:13.2]} 40... Nd4 {[%clk 0:00:11]} 41. Ra3 {[%clk 0:00:11.2]} 41... Qc6
{[%clk 0:00:09.3]} 42. Qxc6 {[%clk 0:00:05.9]} 42... Rxc6 {[%clk 0:00:09.5]} 43.
Ra7+ {[%clk 0:00:06.8]} 43... Kf8 {[%clk 0:00:09.2]} 44. Bd3 {[%clk 0:00:07.1]}
44... f5 {[%clk 0:00:09.1]} 45. Kg2 {[%clk 0:00:07.5]} 45... e4 {[%clk
0:00:09.2]} 46. Bf1 {[%clk 0:00:07.6]} 46... Ne6 {[%clk 0:00:08]} 47. Be2 {[%clk
0:00:07.4]} 47... Rd6 {[%clk 0:00:07.8]} 48. Kf1 {[%clk 0:00:05.9]} 48... Rd2
{[%clk 0:00:07.5]} 49. Ke1 {[%clk 0:00:06.3]} 49... Rc2 {[%clk 0:00:07.4]} 50.
Ra6 {[%clk 0:00:06.9]} 50... Nd4 {[%clk 0:00:06.7]} 51. Bd1 {[%clk 0:00:06.7]}
51... Rxc4 {[%clk 0:00:05.2]} 52. Rxg6 {[%clk 0:00:07.4]} 52... Rc1 {[%clk
0:00:04.8]} 53. Kd2 {[%clk 0:00:06.3]} 53... Ra1 {[%clk 0:00:04.3]} 54. Rg5
{[%clk 0:00:04.8]} 54... Ra2+ {[%clk 0:00:03.5]} 55. Ke3 {[%clk 0:00:04.9]}
55... Ra4 {[%clk 0:00:03.4]} 56. Bxh5 {[%clk 0:00:04.1]} 56... Ke7 {[%clk
0:00:03.1]} 57. Bg6 {[%clk 0:00:04.3]} 57... Kf6 {[%clk 0:00:03.2]} 58. Be8
{[%clk 0:00:03.6]} 58... Ke5 {[%clk 0:00:03.2]} 59. Bxa4 {[%clk 0:00:03.2]}
59... Ne6 {[%clk 0:00:02.3]} 60. Bb3 {[%clk 0:00:02.7]} 60... Nc5 {[%clk
0:00:01.6]} 61. Bc2 {[%clk 0:00:03.3]} 61... Ne6 {[%clk 0:00:01.7]} 62. Bxe4
{[%clk 0:00:03.7]} 62... Kf6 {[%clk 0:00:02.1]} 63. Rxf5+ {[%clk 0:00:03.5]}
63... Kg7 {[%clk 0:00:02.8]} 64. f4 {[%clk 0:00:04.4]} 1-0

[Event "Late-Titled-Tuesday-Blitz-January-30-2024"]
[Site "Chess.com"]
[Date "2024.01.30"]
[Round "9"]
[White "Elsa167"]
[Black "crescentmoon2411"]
[Result "1/2-1/2"]
[WhiteElo "2907"]
[BlackElo "3019"]
[TimeControl "180+1"]
[EndTime "15:45:36 PST"]
[Termination "Game drawn - insufficient material"]

1. d4 {[%clk 0:02:15.7]} 1... Nf6 {[%clk 0:02:16.6]} 2. c4 {[%clk 0:02:14.8]}
2... e6 {[%clk 0:02:16.2]} 3. Nf3 {[%clk 0:02:14.8]} 3... d5 {[%clk 0:02:16.5]}
4. Nc3 {[%clk 0:02:15.2]} 4... a6 {[%clk 0:02:15]} 5. cxd5 {[%clk 0:02:14.7]}
5... exd5 {[%clk 0:02:15.9]} 6. Bg5 {[%clk 0:02:15.2]} 6... Be6 {[%clk
0:02:15.3]} 7. Bxf6 {[%clk 0:02:15.1]} 7... Qxf6 {[%clk 0:02:15.2]} 8. Qb3
{[%clk 0:02:16]} 8... b5 {[%clk 0:02:03.5]} 9. a4 {[%clk 0:02:11.2]} 9... b4
{[%clk 0:01:58.1]} 10. Nxd5 {[%clk 0:02:07.5]} 10... Qd8 {[%clk 0:01:57.7]} 11.
e4 {[%clk 0:02:07.4]} 11... Bxd5 {[%clk 0:01:51.3]} 12. Qxd5 {[%clk 0:01:49]}
12... Qxd5 {[%clk 0:01:50.9]} 13. exd5 {[%clk 0:01:49.9]} 13... Bd6 {[%clk
0:01:40.6]} 14. Bc4 {[%clk 0:01:40.6]} 14... O-O {[%clk 0:01:39.2]} 15. a5
{[%clk 0:01:28.7]} 15... Re8+ {[%clk 0:01:29.9]} 16. Kd2 {[%clk 0:01:28.9]}
16... Nd7 {[%clk 0:01:14.3]} 17. Rhe1 {[%clk 0:01:28.1]} 17... Rxe1 {[%clk
0:00:54.3]} 18. Rxe1 {[%clk 0:01:16.1]} 18... b3 {[%clk 0:00:53.6]} 19. Kd3
{[%clk 0:01:10.3]} 19... Nf6 {[%clk 0:00:31.5]} 20. Ne5 {[%clk 0:01:04.2]} 20...
Re8 {[%clk 0:00:20.6]} 21. f4 {[%clk 0:00:43.8]} 21... Kf8 {[%clk 0:00:18.1]}
22. Ra1 {[%clk 0:00:39.9]} 22... Ra8 {[%clk 0:00:17.5]} 23. g3 {[%clk
0:00:38.1]} 23... g6 {[%clk 0:00:17.2]} 24. Nc6 {[%clk 0:00:37.7]} 24... Ng4
{[%clk 0:00:15]} 25. Bxb3 {[%clk 0:00:24.9]} 25... Nxh2 {[%clk 0:00:13.9]} 26.
Bc4 {[%clk 0:00:25.3]} 26... Ng4 {[%clk 0:00:13.6]} 27. b4 {[%clk 0:00:24.5]}
27... h5 {[%clk 0:00:12.7]} 28. b5 {[%clk 0:00:22.9]} 28... axb5 {[%clk
0:00:12.3]} 29. Bxb5 {[%clk 0:00:23.8]} 29... Nf6 {[%clk 0:00:12.5]} 30. Kc4
{[%clk 0:00:18.5]} 30... Ne4 {[%clk 0:00:12.1]} 31. a6 {[%clk 0:00:17.8]} 31...
Nxg3 {[%clk 0:00:11.8]} 32. a7 {[%clk 0:00:18.4]} 32... Nf5 {[%clk 0:00:10.4]}
33. Kd3 {[%clk 0:00:12]} 33... Bxf4 {[%clk 0:00:10.5]} 34. Ba6 {[%clk
0:00:10.4]} 34... h4 {[%clk 0:00:09.6]} 35. Bb7 {[%clk 0:00:10.8]} 35... Rxa7
{[%clk 0:00:10.2]} 36. Nxa7 {[%clk 0:00:11.3]} 36... h3 {[%clk 0:00:10.7]} 37.
Bc8 {[%clk 0:00:11.2]} 37... Nh4 {[%clk 0:00:03.6]} 38. Bxh3 {[%clk 0:00:11.3]}
38... f5 {[%clk 0:00:04.3]} 39. Nb5 {[%clk 0:00:10.7]} 39... g5 {[%clk
0:00:04.3]} 40. Ra7 {[%clk 0:00:07.9]} 40... g4 {[%clk 0:00:04.5]} 41. Bf1
{[%clk 0:00:08.5]} 41... g3 {[%clk 0:00:03.7]} 42. Nxc7 {[%clk 0:00:09.1]} 42...
Bxc7 {[%clk 0:00:03.4]} 43. Rxc7 {[%clk 0:00:09.1]} 43... f4 {[%clk 0:00:04.3]}
44. d6 {[%clk 0:00:07.7]} 44... Ke8 {[%clk 0:00:04.3]} 45. Rh7 {[%clk
0:00:05.3]} 45... Nf3 {[%clk 0:00:02.9]} 46. Ke4 {[%clk 0:00:03]} 46... Ng5+
{[%clk 0:00:03]} 47. Kxf4 {[%clk 0:00:02.1]} 47... Nxh7 {[%clk 0:00:03.9]} 48.
Bb5+ {[%clk 0:00:01.9]} 48... Kd8 {[%clk 0:00:04.2]} 49. Kxg3 {[%clk 0:00:02.6]}
49... Nf6 {[%clk 0:00:04.1]} 50. Kf4 {[%clk 0:00:03.2]} 50... Nd5+ {[%clk
0:00:04.7]} 51. Ke5 {[%clk 0:00:03.6]} 51... Nc3 {[%clk 0:00:04.6]} 52. Bc6
{[%clk 0:00:04.2]} 52... Na2 {[%clk 0:00:04.4]} 53. Kd5 {[%clk 0:00:02.6]} 53...
Nb4+ {[%clk 0:00:04.9]} 54. Kc5 {[%clk 0:00:03.3]} 54... Nd3+ {[%clk 0:00:05.2]}
55. Kc4 {[%clk 0:00:03.7]} 55... Nf4 {[%clk 0:00:05.5]} 56. Bb5 {[%clk 0:00:03]}
56... Kc8 {[%clk 0:00:04]} 57. Kc3 {[%clk 0:00:02.3]} 57... Nd5+ {[%clk
0:00:03.5]} 58. Kd3 {[%clk 0:00:02.5]} 58... Kd8 {[%clk 0:00:03.4]} 59. Bc6
{[%clk 0:00:02.8]} 59... Nb4+ {[%clk 0:00:03.8]} 60. Kc4 {[%clk 0:00:02.9]}
60... Nxc6 {[%clk 0:00:04.7]} 61. Kc5 {[%clk 0:00:03.8]} 61... Kd7 {[%clk
0:00:05.1]} 62. d5 {[%clk 0:00:04.7]} 62... Nd8 {[%clk 0:00:05.8]} 63. Kd4
{[%clk 0:00:03.2]} 63... Kxd6 {[%clk 0:00:06.7]} 64. Kc4 {[%clk 0:00:03.7]}
64... Nc6 {[%clk 0:00:07.2]} 65. Kb3 {[%clk 0:00:04.6]} 65... Kxd5 {[%clk
0:00:07.4]} 1/2-1/2

[Event "Late-Titled-Tuesday-Blitz-January-30-2024"]
[Site "Chess.com"]
[Date "2024.01.30"]
[Round "9"]
[White "manitodeplomo"]
[Black "vesalhamedinia"]
[Result "1-0"]
[WhiteElo "2697"]
[BlackElo "2497"]
[TimeControl "180+1"]
[EndTime "15:45:45 PST"]
[Termination "manitodeplomo won by checkmate"]

1. d4 {[%clk 0:03:00.9]} 1... d5 {[%clk 0:02:59.3]} 2. c4 {[%clk 0:03:01.1]}
2... e6 {[%clk 0:02:59.6]} 3. Nf3 {[%clk 0:03:01.5]} 3... Nf6 {[%clk 0:02:59.9]}
4. Nc3 {[%clk 0:03:02]} 4... Be7 {[%clk 0:03:00.4]} 5. Bg5 {[%clk 0:03:02.4]}
5... O-O {[%clk 0:03:00.7]} 6. Qc2 {[%clk 0:03:00.2]} 6... c6 {[%clk 0:03:00.3]}
7. e3 {[%clk 0:02:58.4]} 7... h6 {[%clk 0:03:00.2]} 8. Bxf6 {[%clk 0:02:58.1]}
8... Bxf6 {[%clk 0:03:00.3]} 9. O-O-O {[%clk 0:02:58.4]} 9... a5 {[%clk
0:03:00.4]} 10. h4 {[%clk 0:02:58.2]} 10... dxc4 {[%clk 0:03:00]} 11. g4 {[%clk
0:02:57.8]} 11... Be7 {[%clk 0:02:54.2]} 12. g5 {[%clk 0:02:57.8]} 12... h5
{[%clk 0:02:52.9]} 13. Bxc4 {[%clk 0:02:57.1]} 13... b5 {[%clk 0:02:51]} 14. Be2
{[%clk 0:02:44.9]} 14... b4 {[%clk 0:02:50.7]} 15. Ne4 {[%clk 0:02:41]} 15...
Ba6 {[%clk 0:02:50.9]} 16. Ne5 {[%clk 0:02:40.5]} 16... g6 {[%clk 0:02:20]} 17.
Bf3 {[%clk 0:02:05.2]} 17... a4 {[%clk 0:02:10]} 18. Rhg1 {[%clk 0:01:55.7]}
18... b3 {[%clk 0:02:08.7]} 19. axb3 {[%clk 0:01:52.8]} 19... axb3 {[%clk
0:02:09.6]} 20. Qxb3 {[%clk 0:01:53.5]} 20... Bb5 {[%clk 0:02:03.8]} 21. Nc3
{[%clk 0:01:46.2]} 21... Ra1+ {[%clk 0:01:54.3]} 22. Kc2 {[%clk 0:01:44.7]}
22... Rxd1 {[%clk 0:01:52.4]} 23. Rxd1 {[%clk 0:01:45.6]} 23... Na6 {[%clk
0:01:45.4]} 24. Ra1 {[%clk 0:01:19.3]} 24... Nb4+ {[%clk 0:01:45.1]} 25. Kd2
{[%clk 0:01:14.5]} 25... Qb6 {[%clk 0:01:29]} 26. Nd7 {[%clk 0:01:09.6]} 26...
Qc7 {[%clk 0:01:20.8]} 27. Nxf8 {[%clk 0:01:07.3]} 27... Bxf8 {[%clk 0:01:18.8]}
28. Ra8 {[%clk 0:01:04.6]} 28... Kg7 {[%clk 0:01:18.7]} 29. Rxf8 {[%clk
0:01:03.5]} 29... Nd5 {[%clk 0:00:35.6]} 30. Bxd5 {[%clk 0:00:41.8]} 30... exd5
{[%clk 0:00:17.9]} 31. Nxb5 {[%clk 0:00:30.1]} 31... Qh2 {[%clk 0:00:14.6]} 32.
Nc3 {[%clk 0:00:19.4]} 32... Qxf2+ {[%clk 0:00:13.4]} 33. Ne2 {[%clk 0:00:19.1]}
33... Kxf8 {[%clk 0:00:13.2]} 34. Qb8+ {[%clk 0:00:18.8]} 34... Kg7 {[%clk
0:00:12.5]} 35. Qf4 {[%clk 0:00:18.3]} 35... Qg2 {[%clk 0:00:10.6]} 36. Qf6+
{[%clk 0:00:17.7]} 36... Kg8 {[%clk 0:00:11.3]} 37. Qxc6 {[%clk 0:00:17.3]}
37... Qe4 {[%clk 0:00:06.2]} 38. Nf4 {[%clk 0:00:15.9]} 38... Qf3 {[%clk
0:00:05.1]} 39. Qa8+ {[%clk 0:00:13.7]} 39... Kg7 {[%clk 0:00:04.8]} 40. Qxd5
{[%clk 0:00:13.7]} 40... Qf2+ {[%clk 0:00:05.5]} 41. Kc3 {[%clk 0:00:12.8]}
41... Qxe3+ {[%clk 0:00:05.5]} 42. Nd3 {[%clk 0:00:13.3]} 42... Qg1 {[%clk
0:00:04.7]} 43. Qe5+ {[%clk 0:00:13.4]} 43... Kg8 {[%clk 0:00:05.4]} 44. d5
{[%clk 0:00:13.5]} 44... Qa1 {[%clk 0:00:03.5]} 45. d6 {[%clk 0:00:13]} 45...
Qa7 {[%clk 0:00:03.5]} 46. Qe8+ {[%clk 0:00:12.1]} 46... Kg7 {[%clk 0:00:04]}
47. Qe7 {[%clk 0:00:12.2]} 47... Qa5+ {[%clk 0:00:03.7]} 48. Kc2 {[%clk
0:00:12.1]} 48... Qa4+ {[%clk 0:00:04.3]} 49. Kd2 {[%clk 0:00:12.2]} 49... Qa5+
{[%clk 0:00:03.9]} 50. b4 {[%clk 0:00:11.8]} 50... Qa2+ {[%clk 0:00:03.9]} 51.
Ke3 {[%clk 0:00:11.8]} 51... Qb1 {[%clk 0:00:02.9]} 52. d7 {[%clk 0:00:11.7]}
52... Qg1+ {[%clk 0:00:02.3]} 53. Kd2 {[%clk 0:00:11.8]} 53... Qg2+ {[%clk
0:00:02.3]} 54. Kc3 {[%clk 0:00:11.2]} 54... Qc6+ {[%clk 0:00:02.4]} 55. Nc5
{[%clk 0:00:11.3]} 55... Qf3+ {[%clk 0:00:02.3]} 56. Kc4 {[%clk 0:00:11.2]}
56... Qf4+ {[%clk 0:00:02.2]} 57. Qe4 {[%clk 0:00:11.1]} 57... Qf1+ {[%clk
0:00:01.8]} 58. Qd3 {[%clk 0:00:10.4]} 58... Qf4+ {[%clk 0:00:01.8]} 59. Qd4+
{[%clk 0:00:10.2]} 59... Qxd4+ {[%clk 0:00:01.6]} 60. Kxd4 {[%clk 0:00:11.1]}
60... f5 {[%clk 0:00:01.4]} 61. d8=Q {[%clk 0:00:10.6]} 61... Kf7 {[%clk
0:00:02.3]} 62. Qd7+ {[%clk 0:00:10.5]} 62... Kf8 {[%clk 0:00:03]} 63. Ne6+
{[%clk 0:00:10.2]} 63... Kg8 {[%clk 0:00:03.9]} 64. Qg7# {[%clk 0:00:10.4]} 1-0

[Event "Late-Titled-Tuesday-Blitz-January-30-2024"]
[Site "Chess.com"]
[Date "2024.01.30"]
[Round "9"]
[White "RaulPerezGuerra"]
[Black "Burgsvik"]
[Result "1-0"]
[WhiteElo "2445"]
[BlackElo "2292"]
[TimeControl "180+1"]
[EndTime "15:45:46 PST"]
[Termination "RaulPerezGuerra won by checkmate"]

1. b3 {[%clk 0:03:00.9]} 1... c5 {[%clk 0:03:00.9]} 2. Bb2 {[%clk 0:03:00.6]}
2... Nf6 {[%clk 0:02:59.6]} 3. e3 {[%clk 0:02:58.7]} 3... d5 {[%clk 0:02:59.6]}
4. Nf3 {[%clk 0:02:58.2]} 4... Nc6 {[%clk 0:02:59.6]} 5. d4 {[%clk 0:02:58.1]}
5... b6 {[%clk 0:02:55]} 6. c4 {[%clk 0:02:57]} 6... Bg4 {[%clk 0:02:51.3]} 7.
Be2 {[%clk 0:02:54.2]} 7... cxd4 {[%clk 0:02:49.2]} 8. exd4 {[%clk 0:02:53.2]}
8... e6 {[%clk 0:02:44.4]} 9. O-O {[%clk 0:02:51]} 9... Bd6 {[%clk 0:02:41]} 10.
Nc3 {[%clk 0:02:49.8]} 10... O-O {[%clk 0:02:39]} 11. h3 {[%clk 0:02:44.6]}
11... Bh5 {[%clk 0:02:36.7]} 12. Re1 {[%clk 0:02:20.5]} 12... Rc8 {[%clk
0:02:34.2]} 13. cxd5 {[%clk 0:02:13.4]} 13... Nxd5 {[%clk 0:02:29.7]} 14. Nxd5
{[%clk 0:02:01.7]} 14... exd5 {[%clk 0:02:28]} 15. Ne5 {[%clk 0:02:02.6]} 15...
Nxe5 {[%clk 0:02:18.1]} 16. dxe5 {[%clk 0:02:03.5]} 16... Bxe2 {[%clk
0:02:16.3]} 17. Qxe2 {[%clk 0:02:02.5]} 17... Bc5 {[%clk 0:02:14.4]} 18. Rad1
{[%clk 0:02:02.4]} 18... Qd7 {[%clk 0:02:02.1]} 19. Bd4 {[%clk 0:01:51]} 19...
Qe6 {[%clk 0:02:01.3]} 20. Qf3 {[%clk 0:01:38.3]} 20... Bb4 {[%clk 0:01:59.5]}
21. Re2 {[%clk 0:01:37.3]} 21... Rc6 {[%clk 0:01:57]} 22. Bb2 {[%clk 0:01:34.6]}
22... Rd8 {[%clk 0:01:52.9]} 23. h4 {[%clk 0:01:31.7]} 23... Be7 {[%clk
0:01:44.4]} 24. h5 {[%clk 0:01:30.7]} 24... h6 {[%clk 0:01:39.7]} 25. Red2
{[%clk 0:01:26.3]} 25... Bf8 {[%clk 0:01:20.2]} 26. a4 {[%clk 0:01:22.9]} 26...
Rc7 {[%clk 0:01:04.8]} 27. g3 {[%clk 0:01:11.3]} 27... Rcd7 {[%clk 0:01:01.8]}
28. Kg2 {[%clk 0:01:10.3]} 28... Bc5 {[%clk 0:00:57.4]} 29. Bd4 {[%clk
0:01:03.8]} 29... Bb4 {[%clk 0:00:55.7]} 30. Rd3 {[%clk 0:01:02.2]} 30... Rc7
{[%clk 0:00:39.6]} 31. Ba1 {[%clk 0:01:01.1]} 31... Rcd7 {[%clk 0:00:39.1]} 32.
Bb2 {[%clk 0:00:59]} 32... Bc5 {[%clk 0:00:38.1]} 33. Qf4 {[%clk 0:00:51.5]}
33... Qc6 {[%clk 0:00:33.1]} 34. Qf3 {[%clk 0:00:46.9]} 34... Qe6 {[%clk
0:00:30.6]} 35. Bd4 {[%clk 0:00:41.7]} 35... Bxd4 {[%clk 0:00:30]} 36. Rxd4
{[%clk 0:00:41]} 36... Qxe5 {[%clk 0:00:30.5]} 37. g4 {[%clk 0:00:39.1]} 37...
Rd6 {[%clk 0:00:29.2]} 38. b4 {[%clk 0:00:35.6]} 38... Rf6 {[%clk 0:00:27.8]}
39. Qg3 {[%clk 0:00:35.2]} 39... Qxg3+ {[%clk 0:00:26.8]} 40. Kxg3 {[%clk
0:00:36.1]} 40... Rfd6 {[%clk 0:00:26.4]} 41. Kf4 {[%clk 0:00:35.9]} 41... Kf8
{[%clk 0:00:24.6]} 42. Ke5 {[%clk 0:00:31.1]} 42... Re6+ {[%clk 0:00:24.4]} 43.
Kf4 {[%clk 0:00:31.7]} 43... Re2 {[%clk 0:00:23.4]} 44. f3 {[%clk 0:00:30.4]}
44... Rb2 {[%clk 0:00:23.1]} 45. Ke5 {[%clk 0:00:22.7]} 45... Ke7 {[%clk
0:00:22.3]} 46. a5 {[%clk 0:00:20.4]} 46... f6+ {[%clk 0:00:20.6]} 47. Kf5
{[%clk 0:00:20.1]} 47... bxa5 {[%clk 0:00:20.6]} 48. bxa5 {[%clk 0:00:20.1]}
48... Rb5 {[%clk 0:00:21]} 49. Kg6 {[%clk 0:00:19.8]} 49... Kf8 {[%clk 0:00:20]}
50. Rc1 {[%clk 0:00:16.5]} 50... Rb7 {[%clk 0:00:19.6]} 51. a6 {[%clk
0:00:15.6]} 51... Rbd7 {[%clk 0:00:19.9]} 52. Rb1 {[%clk 0:00:15.8]} 52... Re8
{[%clk 0:00:19.5]} 53. Rb7 {[%clk 0:00:15.8]} 53... Ree7 {[%clk 0:00:19.5]} 54.
Rdb4 {[%clk 0:00:12.2]} 54... d4 {[%clk 0:00:16.6]} 55. Rxd7 {[%clk 0:00:10.7]}
55... Rxd7 {[%clk 0:00:16.6]} 56. Rb7 {[%clk 0:00:11.1]} 56... Ke8 {[%clk
0:00:16.7]} 57. Rb8+ {[%clk 0:00:10]} 57... Ke7 {[%clk 0:00:16.8]} 58. Kxg7
{[%clk 0:00:08.1]} 58... d3 {[%clk 0:00:17.3]} 59. Rb1 {[%clk 0:00:08.2]} 59...
d2 {[%clk 0:00:17.8]} 60. Rd1 {[%clk 0:00:08.8]} 60... Ke6+ {[%clk 0:00:18.2]}
61. Kxh6 {[%clk 0:00:09]} 61... Ke5 {[%clk 0:00:18.7]} 62. Kg6 {[%clk
0:00:08.7]} 62... Kf4 {[%clk 0:00:18]} 63. h6 {[%clk 0:00:09.1]} 63... Ke3
{[%clk 0:00:18]} 64. h7 {[%clk 0:00:08.9]} 64... Rd8 {[%clk 0:00:16.1]} 65. Kg7
{[%clk 0:00:08.3]} 65... Kxf3 {[%clk 0:00:16.2]} 66. Rxd2 {[%clk 0:00:07.6]}
66... Rxd2 {[%clk 0:00:15.4]} 67. h8=Q {[%clk 0:00:07.7]} 67... Rd6 {[%clk
0:00:15]} 68. Qa8+ {[%clk 0:00:07.3]} 68... Kxg4 {[%clk 0:00:14.1]} 69. Qxa7
{[%clk 0:00:07.2]} 69... f5 {[%clk 0:00:14.1]} 70. Qc7 {[%clk 0:00:07]} 70...
Rd3 {[%clk 0:00:12.6]} 71. Qc4+ {[%clk 0:00:05.8]} 71... Kg3 {[%clk 0:00:11.4]}
72. Qxd3+ {[%clk 0:00:05.6]} 72... Kg4 {[%clk 0:00:11.3]} 73. a7 {[%clk
0:00:05]} 73... f4 {[%clk 0:00:12.2]} 74. a8=Q {[%clk 0:00:05.1]} 74... f3
{[%clk 0:00:13.1]} 75. Qaxf3+ {[%clk 0:00:05.3]} 75... Kh4 {[%clk 0:00:13.3]}
76. Qh3+ {[%clk 0:00:05.6]} 76... Kg5 {[%clk 0:00:13.3]} 77. Qdg3# {[%clk
0:00:06.5]} 1-0